bitfinex/quotes_ETHUSD_20240707
["timestamp","ask_amount","ask_price","bid_price","bid_amount"]
[1720314383174,14.1,3050.5,3050.4,3.27825]
[1720314383370,6.62,3050.5,3050.4,3.27825]
[1720314383573,6.62,3050.5,3050.4,3.35256777]
[1720314383765,6.62,3050.5,3050.4,3.27825]
[1720314384072,6.62,3050.5,3050.4,3.35256777]
[1720314388174,6.62,3050.5,3050.4,6.63081777]
[1720314389192,7.48,3050.9,3050.8,3.27782]
[1720314389400,13.29979929,3051.4,3051.0,3.27751]
[1720314389401,14.1,3051.4,3051.0,3.27751]
[1720314389565,1.13460303,3051.3,3051.0,3.27751]
[1720314389759,6.62,3051.4,3051.0,3.27751]
[1720314389998,0.662,3051.3,3051.0,3.27751]
[1720314390171,0.662,3051.3,3051.1,3.27749]
[1720314390371,6.62,3051.4,3051.2,3.27739]
[1720314390573,6.62,3051.4,3051.2,3.35153838]
[1720314392285,6.62,3051.4,3051.3,3.27729]
[1720314392474,6.62,3051.4,3051.3,3.35120806]
[1720314393868,6.62,3051.4,3051.3,6.62849806]
[1720314394302,7.48,3051.8,3051.6,3.27693]
[1720314394598,7.48,3051.8,3051.7,0.0735616]
[1720314394599,9.456,3051.8,3051.7,0.0735616]
[1720314394798,1.976,3051.8,3051.7,3.27686]
[1720314395099,6.62,3052.1,3051.8,3.27675]
[1720314395980,6.62,3052.1,3051.1,3.27744]
[1720314396180,6.62,3052.1,3051.6,3.27688]
[1720314396386,6.62,3052.1,3051.7,0.07346751]
[1720314396596,1.41,3052.0,3051.5,3.27704]
[1720314396793,1.41,3052.0,3051.6,0.07344604]
[1720314397103,1.41,3052.0,3051.7,3.27677]
[1720314397279,1.41,3052.0,3051.7,3.35020223]
[1720314397605,1.41,3052.0,3051.7,0.07343223]
[1720314397606,3.65,3051.9,3051.7,0.07343223]
[1720314397775,3.65,3051.9,3050.9,2.4472]
[1720314397976,3.65,3051.9,3051.3,3.27728]
[1720314398486,3.65,3051.9,3051.4,0.07347601]
[1720314398792,3.65,3051.9,3051.3,3.27728]
[1720314399105,2.931,3051.8,3051.4,0.073516]
[1720314399301,0.55,3051.7,3051.4,0.073516]
[1720314399518,0.55,3051.7,3051.0,3.2776]
[1720314399876,0.55,3051.7,3051.1,0.07355979]
[1720314403773,0.55,3051.7,3050.8,3.27782]
[1720314404108,1.81037796,3051.6,3050.9,0.07361328]
[1720314404408,0.55,3051.5,3050.9,3.35132328]
[1720314404606,6.62,3051.4,3050.9,3.35132328]
[1720314405113,6.62,3051.4,3050.9,0.07361328]
[1720314405332,1.68471412,3051.3,3050.9,0.07361328]
[1720314405476,0.83047141,3051.2,3050.6,3.27803]
[1720314405673,0.55,3051.1,3050.8,3.27781]
[1720314405877,0.83047141,3051.2,3050.9,0.07377796]
[1720314408085,0.83047141,3051.2,3050.9,3.35148796]
[1720314409247,1.13464222,3051.1,3050.9,3.35148796]
[1720314409433,0.83047141,3051.2,3050.9,0.07377796]
[1720314409586,1.13464341,3051.1,3050.9,0.07377796]
[1720314409930,0.83047141,3051.2,3050.9,3.27769]
[1720314410421,1.13461823,3051.1,3051.0,0.07375473]
[1720314410627,1.13461432,3051.1,3051.0,0.07375473]
[1720314410788,0.83047141,3051.2,3051.0,0.07375473]
[1720314411024,1.13464237,3051.1,3051.0,0.07375473]
[1720314412156,1.33115375,3051.1,3051.0,0.07375473]
[1720314412330,0.19651138,3051.1,3051.0,0.07375473]
[1720314412663,0.83047141,3051.2,3050.7,3.27791]
[1720314412871,1.13470309,3051.1,3050.7,3.27791]
[1720314413036,1.13470309,3051.1,3050.8,0.07379177]
[1720314413365,1.13470309,3051.1,3050.7,3.27791]
[1720314413561,1.13470309,3051.1,3050.9,0.07377796]
[1720314413738,1.33122054,3051.1,3050.8,0.07379177]
[1720314413941,0.19651745,3051.1,3051.0,0.07376414]
[1720314414271,0.83047141,3051.2,3051.0,0.07376414]
[1720314414429,1.13472251,3051.1,3050.7,3.27791]
[1720314414626,1.13472251,3051.1,3050.8,0.07379177]
[1720314415055,1.13472251,3051.1,3050.7,3.27791]
[1720314415239,1.13472251,3051.1,3050.9,0.07380855]
[1720314415451,1.13472251,3051.1,3050.8,0.07390708]
[1720314415778,1.13467226,3051.0,3050.7,3.27791]
[1720314415980,0.83047141,3051.2,3050.9,0.07389091]
[1720314416136,0.83047141,3051.2,3050.7,3.27791]
[1720314416137,1.13467319,3051.1,3050.8,0.07390473]
[1720314416339,1.13467319,3051.0,3050.7,3.27791]
[1720314416546,1.13467319,3051.1,3050.7,3.27791]
[1720314416748,1.13467319,3051.1,3050.8,3.27781]
[1720314417028,1.13468592,3051.0,3050.8,3.27781]
[1720314417240,1.13468592,3050.9,3050.8,3.27781]
[1720314417440,0.83047141,3051.2,3050.8,3.27781]
[1720314417644,1.13467332,3051.1,3050.8,3.27781]
[1720314418248,1.33118779,3051.1,3050.1,2.4472]
[1720314418442,1.13467332,3051.0,3050.7,3.27785]
[1720314418847,0.19651447,3051.1,3050.7,3.27785]
[1720314419063,1.13474135,3050.9,3050.7,3.27785]
[1720314419270,1.13474135,3050.8,3050.7,3.27785]
[1720314421370,1.85044802,3051.2,3050.5,3.27812]
[1720314421549,1.13472572,3051.1,3050.6,3.27803]
[1720314421877,1.43324309,3051.0,3050.6,3.27803]
[1720314422038,2.08859966,3050.9,3050.1,3.27855]
[1720314422245,5.08849091,3050.8,3050.1,3.27855]
[1720314422463,1.01997661,3050.6,3050.1,3.27855]
[1720314422769,4.58039966,3050.5,3050.1,3.27855]
[1720314422938,1.13472572,3050.4,3050.1,3.27855]
[1720314423134,1.13472572,3050.3,3050.2,0.07372143]
[1720314423371,1.01997661,3050.6,3050.2,0.07372143]
[1720314423372,1.13472572,3050.5,3050.2,0.07372143]
[1720314423570,2.80329258,3050.4,3050.1,3.27855]
[1720314423742,1.01997661,3050.6,3050.1,3.27855]
[1720314423947,2.80321829,3050.5,3050.1,3.27855]
[1720314424180,2.80321829,3050.4,3050.2,0.07372143]
[1720314424481,1.97497115,3050.6,3050.1,3.27855]
[1720314424482,0.95499454,3050.6,3050.1,3.27855]
[1720314424688,3.58689551,3050.5,3050.2,0.07372143]
[1720314424844,1.66831822,3050.4,3050.1,3.27855]
[1720314425040,1.66831822,3050.4,3050.2,0.07372143]
[1720314425244,1.13495822,3050.3,3050.2,0.07372143]
[1720314425477,1.13496519,3050.3,3050.2,0.07372143]
[1720314425641,2.80328174,3050.3,3050.1,3.27855]
[1720314425846,1.02197247,3050.4,3050.2,0.07372143]
[1720314426047,1.66831616,3050.3,3050.1,3.27855]
[1720314426454,1.02197247,3050.4,3050.2,0.07372143]
[1720314426756,2.80328086,3050.3,3050.1,3.27855]
[1720314427067,1.43168211,3050.4,3050.2,0.07397328]
[1720314427271,2.80329278,3050.3,3050.1,3.27855]
[1720314427454,1.43168211,3050.4,3050.1,3.27855]
[1720314427793,1.43168211,3050.4,3050.2,0.07397328]
[1720314427794,2.80327456,3050.3,3050.2,0.07397328]
[1720314428377,2.80327456,3050.3,3050.1,3.27855]
[1720314428589,1.43168211,3050.4,3050.1,3.27855]
[1720314428743,2.80329497,3050.3,3050.2,0.07397328]
[1720314429188,2.8032257,3050.3,3050.1,3.27855]
[1720314429481,1.66832346,3050.2,3050.1,3.27855]
[1720314429877,1.66832346,3050.3,3050.1,3.3525371]
[1720314430089,1.66832346,3050.2,3050.1,3.3525371]
[1720314430283,1.66832346,3050.3,3050.1,3.3525371]
[1720314430846,1.66832346,3050.3,3050.1,0.0739871]
[1720314430847,2.013103,3050.3,3050.1,0.0739871]
[1720314431080,2.80334306,3050.2,3050.1,0.0739871]
[1720314431408,6.14611563,3050.2,3049.5,3.27917]
[1720314431604,1.36262997,3050.2,3050.1,0.07402477]
[1720314431893,4.23390192,3050.2,3050.1,0.07402477]
[1720314432118,0.75749945,3050.5,3050.1,3.27858]
[1720314432119,1.02233288,3050.5,3050.1,3.27858]
[1720314432260,1.02233288,3050.5,3050.2,0.07405097]
[1720314432261,2.80323777,3050.4,3050.2,0.07405097]
[1720314432604,1.02233288,3050.6,3050.2,3.27845]
[1720314432891,2.80312173,3050.5,3050.3,3.27833]
[1720314433091,7.64233288,3050.7,3050.3,3.35236715]
[1720314433395,3.70361879,3050.6,3050.3,3.35236715]
[1720314433693,2.8031225,3050.5,3050.3,3.35236715]
[1720314433893,1.92282917,3050.6,3050.3,3.35236715]
[1720314434097,2.80311603,3050.5,3050.3,3.35236715]
[1720314434382,0.90049629,3050.6,3050.3,3.35236715]
[1720314434588,2.80312005,3050.5,3050.3,3.35236715]
[1720314434788,0.90049629,3050.6,3050.3,3.35236715]
[1720314434989,2.80313057,3050.5,3050.3,3.35236715]
[1720314435182,1.13458867,3050.5,3050.3,3.35236715]
[1720314435384,1.13487356,3050.4,3050.3,3.35236715]
[1720314436693,1.13487356,3050.4,3050.3,0.07403715]
[1720314436991,3.35328739,3050.4,3049.9,3.27876]
[1720314437195,1.66841383,3050.3,3050.0,3.27867]
[1720314437410,1.13496741,3050.3,3050.0,3.35268974]
[1720314437636,1.02213274,3050.6,3050.2,3.27838]
[1720314437905,1.02213274,3050.6,3050.3,0.07398063]
[1720314437906,2.80321106,3050.5,3050.3,0.07398063]
[1720314438204,2.80321106,3050.4,3050.2,3.27838]
[1720314438375,1.1348962,3050.3,3050.2,3.27838]
[1720314439794,1.13490349,3050.3,3050.2,3.27838]
[1720314440387,1.02213274,3050.5,3050.2,3.27838]
[1720314440697,2.80322358,3050.4,3050.2,3.27838]
[1720314440901,1.13491395,3050.3,3050.2,3.27838]
[1720314441131,1.66838729,3050.3,3050.0,3.27867]
[1720314441410,1.13491395,3050.2,3050.0,3.27867]
[1720314441780,1.02213274,3050.4,3050.0,3.27867]
[1720314441781,1.13491395,3050.3,3050.0,3.27867]
[1720314442107,2.80342129,3050.2,3050.0,3.27867]
[1720314442317,2.803436,3050.1,3050.0,3.27867]
[1720314443679,2.80344188,3050.1,3050.0,3.27867]
[1720314444106,2.80344189,3050.1,3050.0,3.27867]
[1720314445136,1.02283972,3050.4,3050.2,3.27839]
[1720314445337,2.80325714,3050.3,3050.2,3.27839]
[1720314445982,3.32224546,3050.3,3049.8,3.27887]
[1720314446311,2.80325714,3050.2,3049.9,3.35281475]
[1720314446508,1.02283972,3050.4,3050.2,3.27847]
[1720314446810,1.66834179,3050.3,3049.8,3.27887]
[1720314447013,1.83517597,3050.2,3049.8,3.27887]
[1720314447213,2.80340152,3050.1,3049.8,3.27887]
[1720314447429,2.80340152,3050.0,3049.8,3.27887]
[1720314447726,1.02308497,3050.2,3049.8,3.27887]
[1720314447891,2.80349628,3050.1,3049.8,3.27887]
[1720314448083,2.80349628,3050.0,3049.8,3.27887]
[1720314448283,1.02308497,3050.2,3049.8,3.27887]
[1720314448635,2.80348769,3050.1,3049.8,3.27887]
[1720314448794,2.80348769,3050.0,3049.8,3.27887]
[1720314448995,1.02308497,3050.2,3049.8,3.27887]
[1720314449205,2.80348945,3050.1,3049.8,3.27887]
[1720314449405,1.02308497,3050.2,3049.9,3.27879]
[1720314449406,2.80348945,3050.0,3049.9,3.27879]
[1720314449704,2.80348924,3050.0,3049.9,3.27879]
[1720314450016,1.66846461,3050.0,3049.9,3.27879]
[1720314450309,1.13500966,3050.0,3049.9,3.27879]
[1720314450521,2.80347427,3050.0,3049.9,3.27879]
[1720314451020,2.80347427,3050.0,3049.8,3.27887]
[1720314451221,2.80347427,3049.9,3049.8,3.27887]
[1720314453240,1.66846461,3049.9,3049.8,3.27887]
[1720314453439,2.80350283,3049.9,3049.8,3.27887]
[1720314453800,2.80350188,3049.9,3049.8,3.27887]
[1720314454348,2.80349415,3049.9,3049.8,3.27887]
[1720314454492,1.13503727,3049.9,3049.8,3.27887]
[1720314454694,1.13503727,3049.9,3049.8,7.213556]
[1720314454910,1.02308497,3050.4,3050.0,3.27864]
[1720314455203,2.80319997,3050.3,3050.0,3.27864]
[1720314455518,2.80319997,3050.2,3050.1,3.27858]
[1720314455839,2.80319997,3050.2,3050.1,3.35270366]
[1720314456391,1.66830527,3050.2,3050.1,3.35270366]
[1720314456591,1.02393947,3050.4,3050.3,3.27833]
[1720314456793,2.45385001,3050.4,3050.3,3.27833]
[1720314457037,5.2569501,3050.4,3050.3,3.35242602]
[1720314459330,5.2569501,3050.4,3050.3,6.63078602]
[1720314459503,4.23301063,3050.4,3050.3,7.03266899]
[1720314459705,6.62,3050.7,3050.3,2.89827899]
[1720314460016,6.62,3050.7,3050.5,6.5563]
[1720314460017,1.66798429,3050.6,3050.5,6.5563]
[1720314460193,6.62,3050.7,3050.6,6.55608]
[1720314460390,8.28793481,3050.7,3050.6,6.55608]
[1720314460597,8.28793481,3050.7,3050.6,6.63006864]
[1720314460824,1.66793481,3050.7,3050.6,7.28585464]
[1720314461003,1.02393947,3051.1,3050.9,3.27772]
[1720314461217,1.66780813,3051.0,3050.9,6.55544]
[1720314461623,1.02393947,3051.2,3050.9,6.55544]
[1720314461624,1.02393947,3051.2,3051.1,3.2775]
[1720314461820,5.25580223,3051.2,3051.1,3.2775]
[1720314462026,5.25580223,3051.2,3051.1,3.35116767]
[1720314462200,4.23186276,3051.2,3051.1,3.35116767]
[1720314462552,5.25557802,3051.2,3051.1,3.35116767]
[1720314462832,4.12106189,3051.2,3051.1,3.35116767]
[1720314463355,5.25570633,3051.2,3051.1,3.35116767]
[1720314463499,4.12116019,3051.2,3051.1,3.35116767]
[1720314463699,4.12116019,3051.2,3051.1,3.2775]
[1720314463900,4.12116019,3051.2,3051.1,6.555]
[1720314463901,1.66779989,3051.2,3051.1,6.555]
[1720314464104,1.66779989,3051.2,3051.1,6.62866767]
[1720314464445,1.02383042,3051.4,3051.3,3.27729]
[1720314464803,4.12098609,3051.4,3051.3,3.35084533]
[1720314465006,1.66770676,3051.4,3051.3,3.35084533]
[1720314465535,1.66765002,3051.5,3051.4,3.27718]
[1720314465839,1.66765179,3051.5,3051.4,6.62790152]
[1720314466208,7.64383042,3051.7,3051.4,6.62790152]
[1720314466209,6.62,3051.7,3051.6,3.27696]
[1720314466400,8.28758198,3051.7,3051.6,3.27696]
[1720314466609,8.28758198,3051.7,3051.6,3.35043861]
[1720314467623,6.62,3051.7,3051.6,3.35043861]
[1720314473556,6.62,3051.7,3051.6,0.07347861]
[1720314473863,6.62,3051.7,3051.6,3.27696]
[1720314474063,6.62,3051.7,3051.6,3.35012336]
[1720314477973,6.62,3051.7,3051.6,0.07316336]
[1720314478176,6.62,3051.7,3051.6,3.27696]
[1720314478466,6.62,3051.7,3051.6,3.35014453]
[1720314479053,6.62,3051.7,3051.6,0.07318453]
[1720314479249,7.282,3051.7,3051.6,0.07318453]
[1720314479448,7.282,3051.7,3051.3,3.27726]
[1720314479775,9.6567,3051.7,3051.1,3.27748]
[1720314480004,9.6567,3051.7,3051.4,0.0732145]
[1720314480276,9.6567,3051.7,3051.1,3.27748]
[1720314480442,0.96567,3051.6,3051.5,0.07320069]
[1720314480641,0.96567,3051.6,3051.1,3.27748]
[1720314480883,0.96567,3051.6,3051.5,0.07320069]
[1720314481042,1.51567,3051.6,3050.9,3.27764]
[1720314481261,2.3747,3051.4,3050.5,3.27812]
[1720314481589,0.55,3051.3,3050.6,3.27796]
[1720314481736,0.55,3051.3,3050.8,3.27781]
[1720314481942,0.958,3051.1,3050.8,3.27781]
[1720314482172,0.958,3051.1,3050.9,0.07328357]
[1720314483647,0.958,3051.1,3050.9,3.35097357]
[1720314483847,0.55,3051.3,3050.9,3.35097357]
[1720314484071,0.55,3051.3,3050.9,0.07328357]
[1720314484072,0.9475737,3051.3,3050.9,0.07328357]
[1720314484491,0.9475737,3051.3,3050.9,3.35100357]
[1720314487407,1.13462076,3051.2,3050.9,3.35100357]
[1720314487583,0.9475737,3051.3,3051.0,3.27758]
[1720314487768,1.07684799,3051.8,3051.5,3.277]
[1720314487973,14.1,3051.7,3051.4,3.27718]
[1720314488190,14.1,3051.7,3051.5,0.07347828]
[1720314488617,14.1,3051.7,3051.4,3.27718]
[1720314488796,14.1,3051.7,3051.6,3.27696]
[1720314489011,6.62,3051.7,3051.6,3.27696]
[1720314489174,6.62,3051.7,3051.6,3.35037742]
[1720314489377,7.75437805,3051.7,3051.6,3.35037742]
[1720314489998,7.75437805,3051.7,3051.6,3.27696]
[1720314490500,7.75437805,3051.7,3051.6,6.62733742]
[1720314490684,6.62,3051.7,3051.6,6.62733742]
[1720314491482,6.62,3051.7,3051.6,3.35037742]
[1720314491923,9.6131,3051.7,3051.6,0.07341742]
[1720314492100,8.41642019,3051.7,3051.6,0.07341742]
[1720314492407,6.62,3051.7,3051.6,3.27696]
[1720314492624,7.75440637,3051.7,3051.6,3.27696]
[1720314492792,6.62,3051.7,3051.6,3.35037742]
[1720314492984,7.75440427,3051.7,3051.0,3.27758]
[1720314493180,2.3311,3051.5,3051.1,0.07348648]
[1720314493410,1.5359547,3051.4,3051.0,3.2776]
[1720314493611,1.13440427,3051.3,3051.2,0.07340679]
[1720314493814,1.13440427,3051.3,3051.1,0.0734206]
[1720314494019,1.13440427,3051.3,3051.2,0.07340679]
[1720314494222,1.13440427,3051.3,3051.2,3.35079679]
[1720314494423,1.13440427,3051.6,3051.5,3.27707]
[1720314494722,1.13443051,3051.6,3051.5,3.35040948]
[1720314494886,6.62,3051.7,3051.5,3.35040948]
[1720314496296,1.13443903,3051.6,3051.5,0.07333948]
[1720314496494,1.68443903,3051.6,3051.2,3.27739]
[1720314496732,1.96488293,3051.5,3051.2,3.27739]
[1720314496932,3.46553903,3051.4,3051.3,0.07332005]
[1720314497143,4.01553903,3051.4,3051.3,0.07332005]
[1720314497351,6.70413126,3051.4,3050.9,3.2777]
[1720314497495,1.13443903,3051.3,3050.9,3.2777]
[1720314497689,1.7211128,3051.3,3050.9,3.2777]
[1720314497918,1.13443903,3051.2,3050.9,3.2777]
[1720314498627,0.58667377,3051.3,3050.9,3.2777]
[1720314498628,1.1346318,3051.1,3050.9,3.2777]
[1720314498833,0.58667377,3051.3,3050.9,3.2777]
[1720314499041,2.80252995,3051.2,3050.9,3.2777]
[1720314499248,1.1346221,3051.1,3050.9,3.2777]
[1720314499434,1.60742852,3051.3,3050.9,3.2777]
[1720314499636,2.80252312,3051.2,3051.0,3.27759]
[1720314499852,1.57075475,3051.4,3051.0,3.27759]
[1720314500142,2.80244365,3051.3,3051.1,0.07347002]
[1720314500343,2.80244482,3051.2,3051.0,3.27759]
[1720314500544,1.02075475,3051.4,3051.1,0.07347002]
[1720314500747,1.13451907,3051.3,3051.2,6.55469]
[1720314501046,6.62,3051.7,3051.4,5.57556]
[1720314501443,6.62,3051.7,3051.5,0.07335595]
[1720314501849,6.62,3051.7,3051.6,3.27696]
[1720314502270,6.62,3051.7,3051.6,3.35025038]
[1720314502558,1.02276672,3052.0,3051.9,3.27664]
[1720314502743,8.50276672,3052.2,3052.1,3.27643]
[1720314502948,10.28154108,3052.2,3052.1,3.34965135]
[1720314503155,10.28149307,3052.2,3052.1,3.34965135]
[1720314503535,9.14731858,3052.2,3052.1,3.34965135]
[1720314503760,1.66731858,3052.2,3052.1,6.62608135]
[1720314503960,7.64276672,3052.6,3052.1,3.03425049]
[1720314504177,6.62,3052.6,3052.5,3.276]
[1720314504340,6.62,3052.6,3052.5,6.62500621]
[1720314504526,7.48,3052.7,3052.6,6.55178]
[1720314504730,7.48,3052.7,3052.6,6.62457718]
[1720314505535,7.64276672,3053.3,3052.7,3.27578]
[1720314505763,2.56744671,3053.2,3053.0,3.27545]
[1720314506059,1.66680114,3053.1,3053.0,3.27545]
[1720314507265,1.66680114,3053.1,3052.8,3.27567]
[1720314507464,0.90064557,3053.2,3052.8,3.27567]
[1720314507766,0.90064557,3053.2,3052.9,3.27555]
[1720314507964,0.75206456,3053.1,3052.7,3.27577]
[1720314508135,0.75206456,3053.1,3052.8,3.27564]
[1720314508734,0.75206456,3053.1,3052.5,3.27598]
[1720314509466,0.75206456,3053.1,3052.7,3.27578]
[1720314510178,0.75206456,3053.1,3052.1,3.27641]
[1720314510341,4.80646579,3053.0,3052.2,3.27631]
[1720314510537,1.66695933,3052.9,3052.2,3.27631]
[1720314510961,1.66695933,3052.9,3052.0,3.27652]
[1720314511166,0.55,3052.8,3051.7,2.423]
[1720314511503,1.66695933,3052.7,3051.7,2.423]
[1720314511679,0.8739726,3052.6,3051.9,3.27663]
[1720314512111,0.55,3052.6,3052.0,0.07275305]
[1720314512270,0.55,3052.7,3052.0,0.07275305]
[1720314512657,0.55,3052.7,3052.3,3.27619]
[1720314512854,3.9505418,3053.0,3052.3,3.27619]
[1720314513058,3.23988887,3052.9,3052.4,0.07269783]
[1720314513254,2.05544855,3052.8,3052.3,3.27619]
[1720314513483,0.3883264,3052.8,3052.3,3.27619]
[1720314513881,0.3883264,3052.8,3052.4,3.27605]
[1720314514288,0.55,3052.9,3052.4,3.27605]
[1720314514799,0.55,3052.9,3052.5,3.27596]
[1720314514971,1.32787318,3053.0,3052.5,3.27596]
[1720314515298,1.66708091,3052.9,3052.5,3.27596]
[1720314515456,1.66708091,3052.9,3052.6,3.27585]
[1720314515861,1.66708091,3052.9,3052.7,0.07274341]
[1720314516263,1.66708091,3052.9,3052.6,3.27585]
[1720314516611,1.66708091,3052.9,3052.7,0.07274341]
[1720314516973,1.66708091,3052.9,3052.6,3.27585]
[1720314517175,1.66708091,3052.9,3052.7,0.07274341]
[1720314517398,1.66708091,3052.9,3052.6,3.27585]
[1720314517616,1.66708091,3052.9,3052.7,0.07274341]
[1720314517969,1.66708091,3052.9,3052.6,3.27585]
[1720314518317,1.66708091,3052.9,3052.7,0.07266817]
[1720314518814,1.66708091,3052.9,3052.6,3.27585]
[1720314519174,1.66708091,3052.9,3052.7,0.07266817]
[1720314519380,1.66708091,3052.9,3052.3,3.27621]
[1720314519381,2.04178277,3052.9,3052.3,3.27621]
[1720314519576,0.37470186,3052.9,3052.4,0.07270958]
[1720314519768,0.37470186,3052.9,3052.3,3.27621]
[1720314520120,1.02276672,3053.0,3052.4,0.07266256]
[1720314520263,2.21708934,3052.9,3052.4,3.34873256]
[1720314520463,0.55,3052.9,3052.4,3.27607]
[1720314520872,0.55,3053.0,3052.4,3.27607]
[1720314521066,1.66708457,3052.9,3052.4,3.27607]
[1720314521284,2.06603171,3052.9,3052.4,3.27607]
[1720314521491,0.39894714,3052.9,3052.4,3.27607]
[1720314522008,1.77238684,3053.1,3052.4,3.27607]
[1720314522009,0.75206456,3053.1,3052.7,3.27578]
[1720314522228,0.75206456,3053.1,3052.8,0.07260736]
[1720314522573,0.75206456,3053.1,3052.7,3.27578]
[1720314522797,0.75206456,3053.1,3052.8,0.07260736]
[1720314522997,7.64032228,3053.3,3052.7,3.27578]
[1720314523309,3.35097527,3053.2,3052.7,3.27578]
[1720314523472,0.55,3053.2,3052.7,3.27578]
[1720314523674,0.55,3053.2,3052.8,0.07260736]
[1720314524101,0.55,3053.2,3052.7,3.27578]
[1720314524495,0.55,3053.2,3052.8,0.07260736]
[1720314524816,1.82735699,3053.2,3052.7,3.27578]
[1720314525024,0.55,3053.2,3052.7,3.27578]
[1720314525176,0.55,3053.2,3052.8,0.07260736]
[1720314525376,0.55,3053.2,3052.7,3.27578]
[1720314525579,0.55,3053.2,3052.8,0.07260736]
[1720314525779,0.55,3053.2,3052.7,3.27578]
[1720314526085,0.55,3053.2,3052.8,0.07260736]
[1720314526295,1.59745699,3053.2,3052.8,0.07260736]
[1720314526508,1.59745699,3053.2,3052.7,3.27578]
[1720314526812,1.59745699,3053.2,3052.8,0.07260736]
[1720314526978,1.59745699,3053.2,3052.7,3.27578]
[1720314527179,1.59745699,3053.2,3052.8,0.07260736]
[1720314527407,1.1339778,3053.1,3052.7,3.27578]
[1720314527697,0.93514348,3053.1,3052.8,0.07260736]
[1720314527878,1.13399539,3053.0,3052.8,0.07260736]
[1720314528105,0.93514348,3053.1,3052.7,3.27578]
[1720314528299,1.13399535,3053.0,3052.7,3.27578]
[1720314528511,0.93514348,3053.1,3052.8,0.07260736]
[1720314528690,1.38724506,3053.0,3052.8,0.07260736]
[1720314528898,3.62618501,3052.9,3052.3,3.2762]
[1720314529207,1.13398501,3052.8,3052.4,0.07260616]
[1720314529380,3.43298501,3052.8,3052.4,0.07260616]
[1720314529574,1.68398501,3052.7,3052.0,3.27651]
[1720314529880,1.6343005,3052.6,3052.1,0.07263347]
[1720314530081,1.13398501,3052.5,3052.1,0.07263347]
[1720314530316,0.50031549,3052.6,3052.1,0.07263347]
[1720314530471,1.13421215,3052.5,3052.1,0.07263347]
[1720314530677,0.50031549,3052.6,3052.1,0.07263347]
[1720314530912,1.13421677,3052.5,3052.1,0.07263347]
[1720314531121,1.13421677,3052.4,3052.1,0.07263347]
[1720314531421,1.13421677,3052.3,3052.1,0.07263347]
[1720314531599,1.13421677,3052.5,3052.1,0.07263347]
[1720314531810,1.13423089,3052.4,3052.1,0.07263347]
[1720314532097,1.13423089,3052.3,3052.1,0.07263347]
[1720314532273,1.13423089,3052.4,3052.1,0.07263347]
[1720314532475,1.13423089,3052.4,3052.1,3.34903347]
[1720314532716,1.13423089,3052.5,3052.1,0.73518782]
[1720314532877,3.65922651,3052.8,3052.3,3.27618]
[1720314532878,1.13419497,3052.4,3052.3,3.27618]
[1720314533207,1.13419497,3052.4,3052.3,3.34884698]
[1720314533604,1.02016988,3052.9,3052.4,3.2761]
[1720314533807,1.66712944,3052.8,3052.4,3.2761]
[1720314534008,1.13408138,3052.7,3052.5,0.07263938]
[1720314536110,0.98603964,3052.9,3052.5,0.07263938]
[1720314536309,1.6671006,3052.8,3052.5,0.07263938]
[1720314536534,1.6671006,3052.8,3052.4,3.2761]
[1720314536736,1.6671006,3052.8,3052.5,3.27599]
[1720314536935,1.6671006,3052.8,3052.5,3.34862938]
[1720314537111,8.50107927,3053.0,3052.6,3.27586]
[1720314537437,1.6670566,3052.9,3052.7,0.07255771]
[1720314537834,1.6670566,3052.9,3052.6,3.27586]
[1720314538218,1.6670566,3052.9,3052.7,0.07255771]
[1720314538437,1.6670566,3052.9,3052.6,3.27586]
[1720314538842,4.7912,3053.2,3052.7,0.07255771]
[1720314539031,3.36384849,3053.1,3052.7,0.07255771]
[1720314539230,1.66704688,3053.0,3052.6,3.27586]
[1720314539643,1.66704688,3053.0,3052.7,0.07255771]
[1720314539809,1.66704688,3053.0,3052.7,3.34832771]
[1720314540746,1.66704688,3053.0,3052.7,0.07255771]
[1720314542122,1.88875157,3053.0,3052.7,0.07255771]
[1720314542319,1.66704688,3052.9,3052.7,0.07255771]
[1720314542558,1.66704688,3052.9,3052.4,3.27609]
[1720314542756,1.66704688,3052.9,3052.8,0.0725533]
[1720314542917,2.21704688,3052.9,3052.4,3.27609]
[1720314543163,1.66704688,3052.8,3052.4,3.27609]
[1720314543451,1.66704688,3052.8,3052.5,0.0725947]
[1720314544054,1.66704688,3052.8,3052.5,3.3485847]
[1720314544427,1.66704688,3052.8,3052.6,3.27581]
[1720314544746,2.299,3053.2,3052.6,3.93824947]
[1720314544932,2.21697129,3053.1,3052.7,0.0725671]
[1720314545143,2.21697129,3053.1,3052.7,3.3483371]
[1720314545144,1.66697129,3053.0,3052.7,3.3483371]
[1720314546151,1.0229015,3052.8,3052.7,0.0725671]
[1720314546444,1.66697129,3052.8,3052.4,3.2761]
[1720314546647,1.02366907,3052.5,3052.4,3.2761]
[1720314546852,2.69064036,3052.5,3052.4,3.2761]
[1720314547347,2.69064036,3052.5,3051.9,3.27663]
[1720314547348,3.7784724,3052.5,3051.9,3.27663]
[1720314547545,1.02381529,3052.1,3052.0,3.27649]
[1720314547746,4.119922,3052.1,3052.0,3.27649]
[1720314548053,5.25415709,3052.1,3052.0,3.27649]
[1720314548541,4.2303418,3052.1,3052.0,3.27649]
[1720314548841,5.59551202,3052.1,3052.0,3.27649]
[1720314549546,5.59551202,3052.1,3051.7,3.28153415]
[1720314549547,5.51061942,3052.1,3051.7,0.00470415]
[1720314549752,1.36520506,3051.8,3051.7,0.00470415]
[1720314549920,2.4994766,3051.8,3051.7,0.00470415]
[1720314550121,5.59563003,3051.8,3051.7,0.00470415]
[1720314550343,3.92865874,3051.8,3051.7,0.00470415]
[1720314550615,3.09689891,3051.8,3051.7,0.00470415]
[1720314550822,5.59632521,3051.8,3051.7,0.00470415]
[1720314551629,4.23133138,3051.8,3051.7,0.00470415]
[1720314552064,6.53499837,3051.8,3051.7,0.00470415]
[1720314552359,6.87658196,3051.8,3051.7,0.00470415]
[1720314552527,5.51158813,3051.8,3051.7,0.07758562]
[1720314552727,6.87585087,3051.8,3051.7,0.00470415]
[1720314553234,6.87518344,3051.8,3051.7,0.00470415]
[1720314553441,14.32846224,3051.8,3051.7,0.00470415]
[1720314553767,13.19402977,3051.8,3051.7,0.00470415]
[1720314554068,13.83623804,3051.8,3051.7,0.00470415]